bitfinex/quotes_SOLUSD_20251204
["timestamp","ask_amount","ask_price","bid_price","bid_amount"]
[1764853520490,35.52227557,142.56,142.52,7.86]
[1764853520688,24.5510662,142.56,142.52,8.53]
[1764853520882,17.53427615,142.58,142.53,0.67]
[1764853521104,0.72,142.61,142.54,10.97120937]
[1764853521390,10.97120937,142.59,142.55,0.67]
[1764853521599,10.97120937,142.59,142.55,8.53]
[1764853521800,0.72,142.61,142.55,8.53]
[1764853522001,10.97120937,142.59,142.55,8.53]
[1764853522408,7.01262272,142.6,142.56,11.64120937]
[1764853522593,7.01262272,142.6,142.57,0.67]
[1764853522594,11.70794713,142.6,142.57,0.67]
[1764853522794,7.01262272,142.6,142.57,0.67]
[1764853523005,17.98383209,142.6,142.57,0.67]
[1764853523308,7.01262272,142.6,142.57,0.67]
[1764853523916,17.98383209,142.6,142.57,0.67]
[1764853524111,10.97120937,142.58,142.54,0.67]
[1764853524308,10.97120937,142.58,142.55,8.53]
[1764853524608,10.97120937,142.57,142.55,0.67]
[1764853524814,25.26417952,142.6,142.52,0.67]
[1764853524815,9.52994492,142.59,142.52,0.67]
[1764853525014,10.97120937,142.55,142.52,0.67]
[1764853525315,8.80994492,142.56,142.52,0.67]
[1764853525495,10.97120937,142.55,142.52,0.67]
[1764853525691,8.80994492,142.56,142.52,0.67]
[1764853525890,10.97120937,142.54,142.5,16.978864]
[1764853526090,10.97120937,142.55,142.51,8.53]
[1764853526416,35.52227557,142.56,142.51,8.53]
[1764853526712,10.97120937,142.55,142.52,0.67]
[1764853527412,24.5510662,142.56,142.52,0.67]
[1764853527612,10.97120937,142.54,142.52,0.67]
[1764853527796,7.01606679,142.53,142.52,0.67]
[1764853527997,7.01409833,142.57,142.52,11.64120937]
[1764853528196,0.2,142.63,142.56,10.97120937]
[1764853528393,0.2,142.63,142.6,27.28007337]
[1764853528624,0.2,142.63,142.61,18.81120937]
[1764853528840,0.2,142.63,142.61,19.47120937]
[1764853529014,0.2,142.63,142.62,0.66]
[1764853529199,0.2,142.63,142.62,11.63120937]
[1764853529511,0.2,142.63,142.62,0.66]
[1764853529719,0.2,142.63,142.62,11.63120937]
[1764853529895,0.2,142.63,142.62,0.66]
[1764853530095,0.2,142.63,142.62,16.968864]
[1764853530296,0.2,142.63,142.62,27.94007337]
[1764853530524,0.2,142.63,142.62,16.968864]
[1764853530713,0.2,142.63,142.62,27.94007337]
[1764853531721,0.2,142.63,142.62,34.95171269]
[1764853531949,0.2,142.63,142.62,35.78007337]
[1764853532410,0.2,142.63,142.62,24.808864]
[1764853532719,7.21114772,142.63,142.62,24.808864]
[1764853533312,7.21114772,142.63,142.62,16.968864]
[1764853533627,7.21114772,142.63,142.56,76.99999999]
[1764853533628,35.7102264,142.63,142.6,0.66]
[1764853533936,35.7102264,142.63,142.6,7.86]
[1764853534102,10.97120937,142.61,142.58,0.66]
[1764853534301,10.97120937,142.62,142.59,7.84]
[1764853534719,10.97120937,142.61,142.59,7.84]
[1764853535910,7.01262272,142.6,142.59,7.84]
[1764853536326,17.98383209,142.6,142.59,7.84]
[1764853537099,35.51538889,142.6,142.56,7.84]
[1764853537314,35.51538889,142.6,142.57,0.66]
[1764853537832,7.01262272,142.6,142.57,11.63120937]
[1764853538006,24.54129799,142.62,142.57,11.63120937]
[1764853538208,35.51250736,142.62,142.58,0.66]
[1764853538716,24.54129799,142.62,142.58,11.63120937]
[1764853539023,24.54129799,142.62,142.59,7.84]
[1764853539226,24.54129799,142.62,142.59,8.5]
[1764853539436,10.97120937,142.6,142.57,7.84]
[1764853539604,10.97120937,142.6,142.57,8.5]
[1764853539926,7.01311452,142.59,142.57,8.5]
[1764853540304,7.01311452,142.59,142.58,0.66]
[1764853541224,17.98432389,142.59,142.57,7.84]
[1764853541928,17.98481576,142.58,142.57,7.84]
[1764853542413,7.01360639,142.58,142.57,7.84]
[1764853542613,17.98481576,142.58,142.57,7.84]
[1764853543407,17.98481576,142.58,142.53,0.68]
[1764853543408,35.51883175,142.58,142.53,0.68]
[1764853543606,10.97120937,142.56,142.54,7.84]
[1764853543831,10.97120937,142.57,142.54,7.84]
[1764853544036,7.01459034,142.56,142.55,0.68]
[1764853544323,7.01459034,142.56,142.54,7.84]
[1764853544630,7.01459034,142.56,142.55,0.68]
[1764853545625,17.98579971,142.56,142.54,7.84]
[1764853545828,10.97120937,142.55,142.54,7.84]
[1764853546218,17.98629179,142.55,142.54,7.84]
[1764853547331,36.24399785,142.55,142.51,7.84]
[1764853547533,10.97120937,142.54,142.51,7.84]
[1764853547832,10.97120937,142.54,142.51,8.52]
[1764853548416,7.01606679,142.53,142.51,8.52]
[1764853549921,17.98727616,142.53,142.51,7.84]
[1764853550221,17.98727616,142.53,142.47,27.28007337]
[1764853550222,11.69120937,142.52,142.48,7.84]
[1764853550526,10.97120937,142.5,142.48,7.84]
[1764853550833,10.97120937,142.49,142.48,7.84]
[1764853551811,24.55968001,142.51,142.48,7.84]
[1764853552014,24.55968001,142.51,142.49,0.68]
[1764853552737,7.01705143,142.51,142.49,0.68]
[1764853553824,7.01705143,142.51,142.46,0.68]
[1764853553825,7.09258994,142.5,142.46,0.68]
[1764853554077,7.09258994,142.49,142.47,0.68]
[1764853554238,31.65226995,142.51,142.47,0.68]
[1764853555646,31.65226995,142.51,142.45,24.828864]
[1764853555647,7.09258994,142.5,142.45,24.828864]
[1764853555830,7.09258994,142.5,142.46,0.68]
[1764853556935,14.11062629,142.49,142.45,7.84]
[1764853557128,7.09258994,142.48,142.45,7.84]
[1764853557326,7.09258994,142.48,142.45,8.52]
[1764853557530,7.09258994,142.46,142.43,55.13129173]
[1764853557833,7.09258994,142.44,142.43,55.13129173]
[1764853559058,14.11308979,142.44,142.43,55.13129173]
[1764853559433,8.80994492,142.43,142.42,0.1]
[1764853559742,15.90253486,142.43,142.35,56.41210837]
[1764853559918,7.09258994,142.39,142.35,57.09210837]
[1764853560321,7.09258994,142.4,142.36,0.68]
[1764853560544,7.09258994,142.39,142.36,0.68]
[1764853560739,9.42994492,142.41,142.36,0.68]
[1764853560939,24.57437051,142.43,142.38,7.09258994]
[1764853561132,14.86922234,142.56,142.4,23.40145394]
[1764853561133,7.02052903,142.44,142.4,23.40145394]
[1764853561338,7.86668761,142.55,142.41,7.09258994]
[1764853561339,8.5,142.49,142.41,7.09258994]
[1764853561526,8.5,142.49,142.41,15.65258994]
[1764853561527,7.09258994,142.47,142.41,15.65258994]
[1764853561733,9.09258993,142.56,142.43,7.09258994]
[1764853561734,7.01852891,142.48,142.43,7.09258994]
[1764853561934,7.01852891,142.48,142.44,7.88]
[1764853562135,7.01852891,142.48,142.44,15.65258994]
[1764853562432,14.11111885,142.48,142.45,0.68]
[1764853562639,7.01852891,142.48,142.45,0.68]
[1764853562946,17.54632229,142.48,142.45,0.68]
[1764853563152,7.01803635,142.49,142.45,0.68]
[1764853563849,7.01705143,142.51,142.45,7.77258994]
[1764853564027,7.01705143,142.51,142.46,7.09258994]
[1764853564233,24.55968001,142.51,142.46,0.68]
[1764853564447,24.55968001,142.51,142.45,7.09258994]
[1764853564448,7.09258994,142.5,142.47,0.68]
[1764853564840,31.65226995,142.51,142.47,0.68]
[1764853565930,7.01705143,142.51,142.47,7.77258994]
[1764853566257,7.01606679,142.53,142.49,7.09258994]
[1764853566571,7.01606679,142.53,142.5,14.97258994]
[1764853566738,14.10865673,142.53,142.5,7.88]
[1764853567056,31.64882371,142.53,142.5,8.56]
[1764853567276,7.01606679,142.53,142.51,0.68]
[1764853567469,7.01562382,142.54,142.51,0.68]
[1764853567759,7.01489284,142.56,142.51,7.77258994]
[1764853567963,7.01489284,142.56,142.52,7.88]
[1764853568169,7.01489284,142.56,142.52,15.65258994]
[1764853568465,7.01414468,142.57,142.53,7.77258994]
[1764853568634,7.01414468,142.57,142.54,0.68]
[1764853569268,7.01376315,142.58,142.54,7.77258994]
[1764853569767,7.01376315,142.58,142.55,8.56]
[1764853570264,7.01376315,142.58,142.56,0.68]
[1764853571360,14.10635309,142.58,142.55,7.88]
[1764853571668,14.10635309,142.58,142.55,8.56]
[1764853572740,7.01376315,142.58,142.56,0.72]
[1764853573345,17.53015969,142.62,142.56,7.81258994]
[1764853573561,7.01213098,142.61,142.57,7.81258994]
[1764853573865,7.01213098,142.61,142.57,0.72]
[1764853574073,7.01213098,142.61,142.58,8.58]
[1764853574263,7.01213098,142.61,142.59,0.72]
[1764853574465,7.01173091,142.62,142.59,0.72]
[1764853576470,7.01173091,142.62,142.57,7.86]
[1764853576471,7.09258994,142.6,142.57,7.86]
[1764853576671,7.09258994,142.59,142.57,7.86]
[1764853576971,7.09258994,142.6,142.57,7.86]
[1764853577169,9.42994492,142.61,142.57,7.86]
[1764853577170,7.09258994,142.59,142.57,7.86]
[1764853577476,7.09258994,142.59,142.56,24.888864]
[1764853577856,8.80994492,142.61,142.56,7.86]
[1764853578175,7.09258994,142.57,142.56,7.86]
[1764853578374,7.09258994,142.57,142.53,8.58]
[1764853578550,7.09258994,142.56,142.53,8.58]
[1764853578950,7.09258994,142.56,142.53,7.86]
[1764853579158,8.80994492,142.58,142.53,7.86]
[1764853579364,7.09258994,142.57,142.54,0.72]
[1764853579563,25.16590083,142.59,142.49,79.84457336]
[1764853579564,7.09258994,142.55,142.49,14.11045653]
[1764853579771,7.09258994,142.55,142.51,7.86]
[1764853580157,17.53634016,142.57,142.51,14.95258994]
[1764853580358,7.09258994,142.58,142.54,16.308864]
[1764853580765,7.09258994,142.58,142.55,0.72]
[1764853580977,14.10570446,142.59,142.55,0.72]
[1764853581284,7.09258994,142.58,142.55,0.72]
[1764853581977,14.10570446,142.59,142.55,0.72]
[1764853582160,31.63849077,142.59,142.55,0.72]
[1764853582471,7.09258994,142.58,142.55,0.72]
[1764853582879,31.63849077,142.59,142.55,0.72]
[1764853583383,7.01262978,142.6,142.55,7.81258994]
[1764853583764,14.10469528,142.62,142.56,7.81258994]
[1764853583967,14.10469528,142.62,142.57,7.86]
[1764853584169,7.09258994,142.61,142.57,8.58]
[1764853584357,7.09258994,142.6,142.57,8.58]
[1764853584562,7.09258994,142.61,142.57,8.58]
[1764853584771,7.09258994,142.61,142.57,0.72]
[1764853585082,14.10469528,142.62,142.58,0.72]
[1764853585486,7.09258994,142.61,142.58,0.72]
[1764853585792,24.54120364,142.62,142.58,0.72]
[1764853585978,31.63379358,142.62,142.58,0.72]
[1764853586690,24.54120364,142.62,142.58,0.72]
[1764853586864,31.63379358,142.62,142.58,0.72]
[1764853587264,7.09258994,142.6,142.57,7.84]
[1764853587669,14.10469528,142.62,142.58,0.72]
[1764853588066,14.10469528,142.62,142.57,7.84]
[1764853588067,7.09258994,142.61,142.57,7.84]
[1764853588262,14.10469528,142.62,142.58,0.72]
[1764853588467,7.01210534,142.62,142.58,0.72]
[1764853589885,14.10469528,142.62,142.58,7.73340999]
[1764853590185,31.63379358,142.62,142.58,0.72]
[1764853590388,24.54120364,142.62,142.58,0.72]
[1764853590561,31.63379358,142.62,142.58,0.72]
[1764853590984,7.09258994,142.61,142.58,0.72]
[1764853591183,7.01210534,142.62,142.58,0.72]
[1764853591489,14.10469528,142.62,142.58,0.72]
[1764853591788,14.10469528,142.62,142.58,7.73346213]
[1764853591964,0.2,142.63,142.58,7.73346213]
[1764853591965,14.30393095,142.63,142.58,7.73346213]
[1764853592160,14.30393095,142.63,142.59,0.72]
[1764853592483,7.21134101,142.63,142.59,7.73299122]
[1764853592788,7.21134101,142.63,142.6,7.84]
[1764853592985,0.2,142.63,142.6,8.56]
[1764853593177,0.2,142.63,142.61,0.72]
[1764853593995,0.2,142.63,142.62,23.40145394]
[1764853594368,0.2,142.63,142.62,31.13309326]
[1764853595672,0.2,142.63,142.62,24.04050332]
[1764853595866,0.2,142.63,142.62,38.97309326]
[1764853597074,0.2,142.63,142.62,31.88050332]
[1764853597269,0.2,142.63,142.62,38.97309326]
[1764853597701,0.2,142.63,142.62,8.56]
[1764853598993,0.2,142.63,142.58,17.53348884]
[1764853599205,7.21136757,142.63,142.62,16.308864]
[1764853599397,7.21136757,142.63,142.62,24.148864]
[1764853599900,0.2,142.63,142.62,24.868864]
[1764853600778,0.2,142.63,142.62,31.88050332]
[1764853601076,7.21114772,142.63,142.62,7.84]
[1764853601482,14.30373766,142.63,142.6,7.84]
[1764853601683,14.30373766,142.63,142.6,8.52]
[1764853602196,14.30373766,142.63,142.6,7.84]
[1764853602375,14.30373766,142.63,142.58,24.00234161]
[1764853602692,7.01213098,142.61,142.59,7.84]
[1764853603065,14.10472092,142.61,142.59,7.84]
[1764853604066,7.01213098,142.61,142.59,8.5]
[1764853604396,0.2,142.63,142.62,16.308864]
[1764853604604,0.2,142.63,142.62,38.23309326]
[1764853604798,0.2,142.63,142.62,38.89309326]
[1764853607794,0.2,142.63,142.62,31.80050332]
[1764853607986,0.2,142.63,142.62,38.89309326]
[1764853613299,0.62,142.71,142.66,16.308864]
[1764853613608,8.80994492,142.73,142.67,8.48]
[1764853613609,7.00710803,142.72,142.67,8.48]
[1764853613792,14.09969797,142.72,142.67,8.48]
[1764853613991,7.80258994,142.71,142.67,8.48]
[1764853614304,32.32651411,142.72,142.67,24.128864]
[1764853614510,32.32651411,142.72,142.67,24.788864]
[1764853614511,36.17988386,142.72,142.67,24.788864]
[1764853615215,25.23392417,142.72,142.67,31.79787577]
[1764853615409,25.23392417,142.72,142.68,0.66]
[1764853615597,7.00710803,142.72,142.68,11.60595969]
[1764853615911,7.00710803,142.72,142.68,0.66]
[1764853616211,0.2,142.74,142.7,16.308864]
[1764853616399,11.65595969,142.73,142.7,24.128864]
[1764853616605,0.71,142.73,142.7,24.128864]
[1764853616904,11.65595969,142.72,142.7,24.128864]
[1764853617412,7.00721743,142.71,142.7,24.128864]
[1764853617708,18.66317712,142.71,142.7,7.82]
[1764853617905,18.66317712,142.71,142.63,26.33721587]
[1764853617906,36.1812207,142.71,142.66,7.82]
[1764853618108,0.71,142.7,142.66,7.82]
[1764853618305,10.94595969,142.69,142.66,7.82]
[1764853618812,11.65595969,142.7,142.66,7.82]
[1764853619007,0.71,142.7,142.66,7.82]
[1764853619203,0.71,142.69,142.66,7.82]
[1764853619398,11.65595969,142.69,142.66,7.82]
[1764853620614,17.51804358,142.71,142.66,7.82]
[1764853620792,10.94595969,142.7,142.66,8.48]
[1764853620992,11.65595969,142.7,142.66,8.48]
[1764853621323,10.94595969,142.67,142.66,7.82]
[1764853621648,8.80994492,142.66,142.6,0.66]
[1764853621792,10.94595969,142.63,142.61,7.82]
[1764853622213,0.71,142.65,142.61,7.82]
[1764853622407,10.94595969,142.64,142.61,7.82]
[1764853623390,7.01114772,142.63,142.61,7.82]
[1764853623717,7.01036194,142.65,142.62,0.66]
[1764853624614,10.94595969,142.66,142.62,0.66]
[1764853624803,7.00984655,142.66,142.62,0.66]
[1764853625518,17.95580624,142.66,142.62,7.67148591]
[1764853626415,17.95580624,142.66,142.62,7.01148591]
[1764853626596,17.95580624,142.66,142.63,0.66]
[1764853626797,17.95580624,142.66,142.64,7.82]
[1764853628621,7.01065619,142.64,142.6,23.32102694]
[1764853628809,17.95661588,142.64,142.61,7.8]
[1764853628997,11.65595969,142.63,142.61,7.8]
[1764853629198,10.94595969,142.63,142.61,7.8]
[1764853629398,11.65595969,142.62,142.56,0.66]
[1764853629600,10.94595969,142.61,142.57,7.8]
[1764853629827,10.94595969,142.61,142.57,24.108864]
[1764853630007,11.65595969,142.62,142.57,31.1228353]
[1764853630327,11.65595969,142.62,142.57,24.768864]
[1764853630525,11.65595969,142.61,142.57,24.108864]
[1764853630828,10.94595969,142.59,142.57,24.108864]
[1764853631023,17.95858241,142.6,142.57,8.46]
[1764853633914,18.66828522,142.61,142.57,15.47409525]
[1764853634610,7.0117978,142.62,142.59,16.308864]
[1764853634811,7.6817978,142.62,142.6,7.8]
[1764853635123,11.61595969,142.61,142.59,7.8]
[1764853635313,10.94595969,142.6,142.59,7.8]
[1764853635830,10.94595969,142.6,142.57,24.108864]
[1764853635831,17.95889841,142.6,142.57,24.108864]
[1764853636302,10.94595969,142.59,142.57,24.108864]
[1764853637108,17.95889841,142.6,142.57,24.798864]
[1764853637319,17.95889841,142.6,142.57,24.108864]
[1764853637536,10.94595969,142.59,142.54,69.31555139]
[1764853637742,10.94595969,142.58,142.55,7.8]
[1764853637904,17.96005802,142.57,142.56,16.308864]
[1764853638537,17.96005802,142.57,142.55,7.8]
[1764853639837,10.94595969,142.58,142.56,0.69]
[1764853640019,17.95923537,142.59,142.56,0.69]
[1764853640221,10.94595969,142.58,142.55,7.8]
[1764853640646,11.61595969,142.57,142.55,7.8]
[1764853640850,10.94595969,142.56,142.53,16.308864]
[1764853641157,10.94595969,142.55,142.53,7.8]
[1764853641368,10.94595969,142.54,142.48,7.01838092]
[1764853641657,10.94595969,142.54,142.47,0.1]
[1764853641658,10.94595969,142.49,142.47,0.1]
[1764853641846,32.91880892,142.55,142.47,0.1]
[1764853641847,17.9644886,142.48,142.47,0.1]
[1764853642228,10.94595969,142.49,142.47,0.1]
[1764853642431,10.94595969,142.5,142.47,0.1]
[1764853642636,17.96357028,142.5,142.47,0.1]
[1764853642844,10.94595969,142.49,142.47,0.1]
[1764853643516,7.6872187,142.51,142.47,7.80901259]
[1764853643720,10.94595969,142.53,142.48,7.8]
[1764853643932,0.67,142.55,142.49,7.70803635]
[1764853644146,15.82453526,142.56,142.49,41.56199123]
[1764853644324,15.82453526,142.56,142.5,0.69]
[1764853644325,10.94595969,142.54,142.5,0.69]
[1764853644514,10.94595969,142.54,142.51,7.8]
[1764853644716,10.94595969,142.54,142.51,8.49]
[1764853645234,17.96107883,142.55,142.51,15.50681407]
[1764853645726,10.94595969,142.55,142.52,0.69]
[1764853646653,7.01479725,142.56,142.52,0.69]
[1764853646943,10.94595969,142.55,142.52,0.69]
[1764853647344,10.94595969,142.55,142.52,7.70616114]
[1764853647935,10.94595969,142.56,142.52,7.70616114]
[1764853648341,10.94595969,142.55,142.52,0.69]
[1764853648542,10.94595969,142.55,142.52,7.01627695]
[1764853648747,10.94595969,142.56,142.52,7.70627695]
[1764853649446,17.96061756,142.56,142.52,7.70627695]
[1764853650038,10.94595969,142.55,142.52,7.01627695]
[1764853650636,10.94595969,142.55,142.52,7.70627695]
[1764853650832,7.68465787,142.56,142.49,27.25482369]
[1764853650833,10.94595969,142.53,142.49,16.308864]
[1764853651058,10.94595969,142.5,142.47,7.9]
[1764853651456,10.94595969,142.5,142.47,15.6087396]
[1764853651962,10.94595969,142.51,142.48,0.69]
[1764853652657,17.96267995,142.52,142.47,14.9187396]
[1764853652855,10.94595969,142.51,142.47,15.6087396]
[1764853653059,7.01623106,142.53,142.48,11.63595969]
[1764853653238,7.01623106,142.53,142.49,10.94595969]
[1764853653562,18.63219075,142.53,142.5,7.8]
[1764853654169,7.01571858,142.54,142.51,0.69]
[1764853654859,7.01571858,142.54,142.5,25.76345352]
[1764853655045,0.67,142.57,142.51,0.69]
[1764853655245,10.94595969,142.55,142.51,0.69]
[1764853655448,10.94595969,142.55,142.52,7.8]
[1764853656344,17.9611574,142.55,142.52,7.8]
[1764853657561,17.9611574,142.55,142.51,14.81681491]
[1764853657748,17.9611574,142.55,142.51,8.49]
[1764853658870,17.9611574,142.55,142.51,15.50697729]
[1764853659948,7.01519771,142.55,142.51,15.50697729]
[1764853660169,17.9611574,142.55,142.51,15.50697729]
[1764853660373,10.94595969,142.53,142.48,0.69]
[1764853660543,10.94595969,142.52,142.5,16.308864]
[1764853661248,0.67,142.53,142.5,16.308864]
[1764853661560,11.61595969,142.53,142.5,16.308864]
[1764853662769,7.73655907,142.52,142.49,7.8]
[1764853662947,7.01655907,142.52,142.49,7.8]
[1764853663147,10.94595969,142.55,142.5,0.71]
[1764853663862,36.21874817,142.55,142.5,7.72744235]
[1764853664058,10.94595969,142.54,142.5,7.72744235]
[1764853664260,25.27278848,142.55,142.5,7.72744235]
[1764853664465,10.94595969,142.54,142.5,7.72744235]
[1764853664866,17.96185385,142.54,142.5,7.72744235]
[1764853665369,7.01589416,142.54,142.51,0.71]
[1764853665670,10.94595969,142.56,142.52,7.8]
[1764853666077,10.94595969,142.56,142.53,0.71]
[1764853666253,11.66595969,142.55,142.52,7.8]
[1764853666446,10.94595969,142.53,142.5,70.1]
[1764853666650,10.94595969,142.53,142.5,8.51]
[1764853666859,17.96221541,142.53,142.5,8.51]
[1764853667055,18.68221541,142.53,142.5,7.8]
[1764853667259,7.73625572,142.53,142.5,7.8]
[1764853668571,18.68221541,142.53,142.5,7.8]
[1764853669276,7.01625572,142.53,142.5,8.51]
[1764853670169,17.9616264,142.54,142.5,15.52721221]
[1764853670363,18.6816264,142.54,142.5,15.52721221]
[1764853670979,18.6816264,142.54,142.5,7.8]
[1764853671175,18.6816264,142.54,142.5,8.51]
[1764853672481,10.94595969,142.53,142.5,8.51]
[1764853672868,18.6816264,142.54,142.5,8.51]
[1764853674451,14.82700716,142.54,142.5,15.52747182]
[1764853674654,7.01566671,142.54,142.51,0.71]
[1764853674959,7.0152484,142.55,142.51,0.71]
[1764853675150,7.0152484,142.55,142.51,7.72676988]
[1764853675551,7.0152484,142.55,142.52,0.71]
[1764853675773,7.0152484,142.55,142.5,7.8]
[1764853675774,8.80994492,142.54,142.5,7.8]
[1764853675972,7.09134045,142.53,142.51,16.308864]
[1764853676375,7.81134045,142.53,142.5,16.308864]
[1764853676577,7.81134045,142.52,142.48,31.83738536]
[1764853677258,14.82834037,142.52,142.48,31.83738536]
[1764853677593,14.82834037,142.52,142.49,0.71]
[1764853677789,14.10834037,142.52,142.48,24.818864]
[1764853678082,7.09134045,142.5,142.48,7.8]
[1764853679081,14.82888302,142.51,142.48,7.8]
[1764853679281,7.09134045,142.5,142.48,7.8]
[1764853679865,14.82888302,142.51,142.48,7.8]
[1764853680175,7.01754257,142.51,142.49,0.71]
[1764853680384,14.10807896,142.52,142.49,0.71]
[1764853680556,7.01673851,142.52,142.49,0.71]
[1764853681194,7.81134045,142.53,142.49,0.71]
[1764853681195,7.73620535,142.53,142.49,7.72771532]
[1764853681372,21.90712692,142.54,142.5,0.71]
[1764853681561,22.62712692,142.54,142.5,0.71]
[1764853682064,14.82712692,142.54,142.5,0.71]
[1764853682459,14.82712692,142.54,142.5,7.72746404]
[1764853683573,14.10712692,142.54,142.51,0.71]
[1764853683770,14.10754386,142.53,142.49,15.52780313]
[1764853683970,7.73620341,142.53,142.48,87.118864]
[1764853684292,7.01620341,142.53,142.49,7.72794173]
[1764853684667,9.66362541,142.53,142.5,0.71]
[1764853685590,9.66362541,142.53,142.5,7.72754383]
[1764853686681,2.647422,142.53,142.5,7.72754383]
[1764853687692,7.01557457,142.54,142.48,103.95475431]
[1764853687693,2.647422,142.51,142.48,87.118864]
[1764853688296,2.647422,142.51,142.48,93.42733478]
[1764853688476,2.647422,142.5,142.48,86.408864]
[1764853688677,2.647422,142.5,142.48,24.108864]
[1764853689075,10.38490147,142.51,142.48,24.108864]
[1764853689280,9.66490147,142.51,142.48,31.83721945]
[1764853689680,2.647422,142.49,142.47,0.1]
[1764853689989,11.45736692,142.48,142.47,0.1]
[1764853690319,2.647422,142.48,142.47,0.1]
[1764853690674,19.19589583,142.48,142.47,0.1]
[1764853691701,16.54847383,142.48,142.47,0.1]
[1764853691989,19.19589583,142.48,142.47,0.1]
[1764853694881,26.99589583,142.48,142.47,0.1]
[1764853696095,26.99589583,142.48,142.41,24.108864]
[1764853696096,79.6348627,142.48,142.41,24.108864]
[1764853696274,2.647422,142.44,142.41,24.108864]
[1764853696596,2.647422,142.43,142.41,24.108864]
[1764853696792,2.647422,142.43,142.41,7.8]
[1764853697093,2.647422,142.43,142.4,7.84236536]
[1764853697094,2.647422,142.42,142.4,0.1]
[1764853697481,2.647422,142.42,142.4,0.82]
[1764853698702,9.66917798,142.42,142.4,0.1]
[1764853699090,10.38917798,142.42,142.4,0.1]
[1764853699406,9.66917798,142.42,142.4,0.1]
[1764853699577,2.647422,142.41,142.4,0.1]
[1764853700096,7.02175598,142.42,142.4,0.82]
[1764853700288,9.66917798,142.42,142.4,0.82]
[1764853700598,2.647422,142.42,142.4,0.1]
[1764853700897,9.66922149,142.42,142.4,0.82]
[1764853701198,9.66922149,142.42,142.4,0.1]
[1764853701398,9.66922149,142.42,142.4,0.82]
[1764853701591,9.66922149,142.42,142.4,0.1]
[1764853701996,7.74091329,142.44,142.4,7.8424009]
[1764853702192,7.0201591,142.45,142.4,10.4898229]
[1764853702509,9.6675811,142.45,142.41,0.72]
[1764853702998,9.6675811,142.45,142.41,17.028864]
[1764853703199,7.0201591,142.45,142.41,17.028864]
[1764853703497,9.6675811,142.45,142.42,0.72]
[1764853703901,17.54927246,142.46,142.42,0.72]
[1764853703902,7.01968923,142.46,142.42,0.72]
[1764853704081,24.56212955,142.5,142.44,2.647422]
[1764853704281,24.56212955,142.5,142.45,2.647422]
[1764853704282,9.66496585,142.5,142.45,2.647422]
[1764853704499,2.647422,142.47,142.43,16.308864]
[1764853704702,2.647422,142.45,142.43,16.308864]
[1764853704888,2.647422,142.44,142.42,16.308864]
[1764853705096,2.647422,142.45,142.42,17.028864]
[1764853705300,0.72,142.48,142.42,24.05011152]
[1764853705603,11.45736692,142.47,142.43,0.72]
[1764853705984,9.66693624,142.46,142.42,23.33011152]
[1764853706301,9.66693624,142.46,142.4,25.45555249]
[1764853706302,2.647422,142.43,142.4,0.1]
[1764853706606,11.45736692,142.41,142.4,0.1]
[1764853707005,9.52994492,142.41,142.4,0.1]
[1764853707303,12.17736692,142.41,142.4,0.1]
[1764853708107,19.19934571,142.41,142.4,0.1]
[1764853708688,7.02197879,142.41,142.4,0.1]
[1764853708892,2.647422,142.44,142.4,0.82]
[1764853709110,17.55034582,142.45,142.4,0.82]
[1764853709411,2.647422,142.43,142.4,0.82]
[1764853709993,9.66838334,142.44,142.4,0.82]
[1764853710309,9.66838334,142.44,142.4,7.8421668]
[1764853710499,9.66838334,142.44,142.4,0.82]
[1764853710703,9.66838334,142.44,142.41,0.72]
[1764853711587,7.02096134,142.44,142.41,0.72]
[1764853712387,7.0199566,142.46,142.41,10.38939052]
[1764853712608,7.01921188,142.47,142.42,2.647422]
[1764853712932,9.66663388,142.47,142.42,0.72]